[Event "*** Titled Tuesday Blitz"]
[Site "Chess.com"]
[Date "2018.01.02"]
[Round "5"]
[White "Pirlo1"]
[Black "Mikhail_Golubev"]
[Result "1/2-1/2"]
[WhiteElo "2215"]
[BlackElo "2075"]
[TimeControl "180+2"]
[EndTime "14:11:24 PST"]
[Termination "Game drawn - insufficient material"]

1. d4 {[%clk 0:03:00.4]} 1... g6 {[%clk 0:02:58.4]} 2. Nc3 {[%clk 0:03:00.9]}
2... Bg7 {[%clk 0:02:58.7]} 3. e4 {[%clk 0:03:02.1]} 3... d6 {[%clk 0:02:59]} 4.
Nf3 {[%clk 0:02:59.9]} 4... c6 {[%clk 0:02:57.8]} 5. h3 {[%clk 0:02:59.7]} 5...
b5 {[%clk 0:02:54.2]} 6. a4 {[%clk 0:02:56]} 6... b4 {[%clk 0:02:52.9]} 7. Nb1
{[%clk 0:02:54.8]} 7... Nd7 {[%clk 0:02:41.3]} 8. a5 {[%clk 0:02:51.7]} 8...
Ngf6 {[%clk 0:02:36.8]} 9. Bd3 {[%clk 0:02:51.1]} 9... O-O {[%clk 0:02:27.8]}
10. O-O {[%clk 0:02:51.5]} 10... Qc7 {[%clk 0:02:14.9]} 11. Qe1 {[%clk
0:02:46.6]} 11... c5 {[%clk 0:02:05.6]} 12. e5 {[%clk 0:02:47.3]} 12... Ne8
{[%clk 0:01:50.7]} 13. e6 {[%clk 0:02:47.6]} 13... fxe6 {[%clk 0:01:51.2]} 14.
Qxe6+ {[%clk 0:02:47.6]} 14... Kh8 {[%clk 0:01:42.7]} 15. Qxe7 {[%clk
0:02:41.6]} 15... c4 {[%clk 0:01:33.4]} 16. Be4 {[%clk 0:02:37.1]} 16... Bf6
{[%clk 0:01:30]} 17. Qxf8+ {[%clk 0:02:17.6]} 17... Nxf8 {[%clk 0:01:29.9]} 18.
Bxa8 {[%clk 0:02:19.5]} 18... Qf7 {[%clk 0:00:56.8]} 19. Be3 {[%clk 0:01:54.2]}
19... d5 {[%clk 0:00:50.1]} 20. Bc6 {[%clk 0:01:45]} 20... Nc7 {[%clk
0:00:42.4]} 21. Nbd2 {[%clk 0:01:39.1]} 21... Bf5 {[%clk 0:00:30.6]} 22. c3
{[%clk 0:01:39.2]} 22... b3 {[%clk 0:00:31.7]} 23. Rfe1 {[%clk 0:01:38.1]} 23...
Nfe6 {[%clk 0:00:31.2]} 24. Ne5 {[%clk 0:01:20.4]} 24... Bxe5 {[%clk 0:00:31.6]}
25. dxe5 {[%clk 0:01:21.1]} 25... Nd8 {[%clk 0:00:27.4]} 26. Ba4 {[%clk
0:01:20.5]} 26... Nce6 {[%clk 0:00:26]} 27. Nf3 {[%clk 0:01:14]} 27... Be4
{[%clk 0:00:22.8]} 28. Ng5 {[%clk 0:01:12.6]} 28... Nxg5 {[%clk 0:00:22.3]} 29.
Bxg5 {[%clk 0:01:13.2]} 29... Ne6 {[%clk 0:00:22]} 30. Bf6+ {[%clk 0:01:14.2]}
30... Kg8 {[%clk 0:00:22.6]} 31. Rad1 {[%clk 0:01:13.1]} 31... Bd3 {[%clk
0:00:21.1]} 32. Bc6 {[%clk 0:01:04.8]} 32... Nc5 {[%clk 0:00:21.2]} 33. Re3
{[%clk 0:00:59.6]} 33... Qe6 {[%clk 0:00:21.6]} 34. Ba8 {[%clk 0:00:51.2]} 34...
Be4 {[%clk 0:00:13.1]} 35. Rd4 {[%clk 0:00:50.1]} 35... Qf5 {[%clk 0:00:07.8]}
36. f3 {[%clk 0:00:49.8]} 36... Nd3 {[%clk 0:00:06.5]} 37. Bxd5+ {[%clk
0:00:44.1]} 37... Bxd5 {[%clk 0:00:06.8]} 38. Rxd5 {[%clk 0:00:45.2]} 38... Qf4
{[%clk 0:00:06.3]} 39. Re4 {[%clk 0:00:42.4]} 39... Qc1+ {[%clk 0:00:06.3]} 40.
Kh2 {[%clk 0:00:43.5]} 40... Nf2 {[%clk 0:00:07.1]} 41. e6 {[%clk 0:00:40.4]}
41... Qh1+ {[%clk 0:00:05.6]} 42. Kg3 {[%clk 0:00:41.3]} 42... Nxe4+ {[%clk
0:00:06.5]} 43. fxe4 {[%clk 0:00:42.5]} 43... Qe1+ {[%clk 0:00:07.5]} 44. Kf4
{[%clk 0:00:43]} 44... Qf2+ {[%clk 0:00:06.5]} 45. Ke5 {[%clk 0:00:43.4]} 45...
Qg3+ {[%clk 0:00:07.3]} 46. Kd4 {[%clk 0:00:44.3]} 46... Qf2+ {[%clk 0:00:08.1]}
47. Kxc4 {[%clk 0:00:45.2]} 47... Qxf6 {[%clk 0:00:08]} 48. Rd6 {[%clk
0:00:29.1]} 48... Qe5 {[%clk 0:00:08.6]} 49. Rd8+ {[%clk 0:00:29.2]} 49... Kg7
{[%clk 0:00:08.6]} 50. Rd7+ {[%clk 0:00:30.4]} 50... Kf6 {[%clk 0:00:08.9]} 51.
Rxh7 {[%clk 0:00:19.7]} 51... Qxe6+ {[%clk 0:00:06.7]} 52. Kb4 {[%clk
0:00:20.5]} 52... a6 {[%clk 0:00:05.9]} 53. c4 {[%clk 0:00:20.8]} 53... Qd6+
{[%clk 0:00:05.5]} 54. Kxb3 {[%clk 0:00:20.7]} 54... Qd3+ {[%clk 0:00:05.9]} 55.
Kb4 {[%clk 0:00:21]} 55... Qd2+ {[%clk 0:00:06.9]} 56. Kb3 {[%clk 0:00:21.6]}
56... Qxg2 {[%clk 0:00:07.7]} 57. Rb7 {[%clk 0:00:20.4]} 57... Qf3+ {[%clk
0:00:07.1]} 58. Kb4 {[%clk 0:00:20.6]} 58... Qxe4 {[%clk 0:00:07.9]} 59. Rb6+
{[%clk 0:00:21.6]} 59... Ke5 {[%clk 0:00:08.9]} 60. Rxa6 {[%clk 0:00:23.5]}
60... Qe1+ {[%clk 0:00:08.4]} 61. Kb5 {[%clk 0:00:24]} 61... Qe2 {[%clk
0:00:04.7]} 62. b4 {[%clk 0:00:24.5]} 62... Kd4 {[%clk 0:00:04.7]} 63. Rd6+
{[%clk 0:00:25]} 63... Kc3 {[%clk 0:00:05.3]} 64. Rc6 {[%clk 0:00:25.8]} 64...
Qe5+ {[%clk 0:00:05.1]} 65. Rc5 {[%clk 0:00:26.7]} 65... Qe8+ {[%clk 0:00:04.9]}
66. Rc6 {[%clk 0:00:27.3]} 66... Qe5+ {[%clk 0:00:05.3]} 67. Rc5 {[%clk
0:00:28.3]} 67... Qb8+ {[%clk 0:00:05.8]} 68. Kc6 {[%clk 0:00:26.3]} 68... Qxb4
{[%clk 0:00:06.7]} 69. a6 {[%clk 0:00:27.3]} 69... Qa4+ {[%clk 0:00:06.5]} 70.
Kb6 {[%clk 0:00:26.6]} 70... Qb4+ {[%clk 0:00:07.3]} 71. Rb5 {[%clk 0:00:26.9]}
71... Qd6+ {[%clk 0:00:06.5]} 72. Kb7 {[%clk 0:00:27.9]} 72... Qd7+ {[%clk
0:00:07.1]} 73. Kb6 {[%clk 0:00:28.7]} 73... Qd8+ {[%clk 0:00:07.4]} 74. Kb7
{[%clk 0:00:29.9]} 74... Qd7+ {[%clk 0:00:07.9]} 75. Kb6 {[%clk 0:00:31]} 75...
Qd8+ {[%clk 0:00:07.7]} 76. Kb7 {[%clk 0:00:31.9]} 76... Qd7+ {[%clk 0:00:07.1]}
77. Kb6 {[%clk 0:00:32.6]} 77... Kxc4 {[%clk 0:00:07.3]} 78. Rc5+ {[%clk
0:00:31]} 78... Kb4 {[%clk 0:00:07.9]} 79. a7 {[%clk 0:00:29.5]} 79... Qd4
{[%clk 0:00:06.7]} 80. a8=Q {[%clk 0:00:28.5]} 80... Qxc5+ {[%clk 0:00:07.5]}
81. Kb7 {[%clk 0:00:28.3]} 81... Qd5+ {[%clk 0:00:06.4]} 82. Kb8 {[%clk
0:00:29.1]} 82... Qxa8+ {[%clk 0:00:05.7]} 83. Kxa8 {[%clk 0:00:30.2]} 83... Kc4
{[%clk 0:00:07.1]} 84. Kb7 {[%clk 0:00:31.3]} 84... Kd5 {[%clk 0:00:07.8]} 85.
Kc7 {[%clk 0:00:32.3]} 85... Ke5 {[%clk 0:00:08.2]} 86. Kd7 {[%clk 0:00:33.4]}
86... Kf4 {[%clk 0:00:08.3]} 87. Ke6 {[%clk 0:00:34.4]} 87... Kg5 {[%clk
0:00:07.3]} 88. Kf7 {[%clk 0:00:34.9]} 88... Kh4 {[%clk 0:00:07.9]} 89. Kxg6
{[%clk 0:00:35.8]} 89... Kxh3 {[%clk 0:00:08.8]} 1/2-1/2

[Event "*** Titled Tuesday Blitz"]
[Site "Chess.com"]
[Date "2018.01.02"]
[Round "5"]
[White "Maili15"]
[Black "milovanratkovic"]
[Result "0-1"]
[WhiteElo "2295"]
[BlackElo "2447"]
[TimeControl "180+2"]
[EndTime "14:11:35 PST"]
[Termination "milovanratkovic won by resignation"]

1. d4 {[%clk 0:03:01.9]} 1... d5 {[%clk 0:02:59.4]} 2. c4 {[%clk 0:03:03.2]}
2... dxc4 {[%clk 0:03:01.3]} 3. e4 {[%clk 0:03:03.7]} 3... Nc6 {[%clk
0:03:01.6]} 4. Nf3 {[%clk 0:02:56.7]} 4... Bg4 {[%clk 0:03:01.3]} 5. d5 {[%clk
0:02:53.7]} 5... Ne5 {[%clk 0:02:59.5]} 6. Bf4 {[%clk 0:02:55.2]} 6... Ng6
{[%clk 0:02:47.5]} 7. Be3 {[%clk 0:02:56]} 7... e5 {[%clk 0:02:47.7]} 8. Bxc4
{[%clk 0:02:56.3]} 8... a6 {[%clk 0:02:48.9]} 9. a3 {[%clk 0:02:50.1]} 9... Bd6
{[%clk 0:02:49.2]} 10. Nc3 {[%clk 0:02:50]} 10... Nf6 {[%clk 0:02:49.9]} 11. h3
{[%clk 0:02:46.9]} 11... Bd7 {[%clk 0:02:50.2]} 12. b4 {[%clk 0:02:37.7]} 12...
O-O {[%clk 0:02:47]} 13. g4 {[%clk 0:02:37.7]} 13... b5 {[%clk 0:02:40.3]} 14.
Bb3 {[%clk 0:02:36.7]} 14... a5 {[%clk 0:02:41.5]} 15. bxa5 {[%clk 0:02:30.2]}
15... Rxa5 {[%clk 0:02:43.4]} 16. Qc1 {[%clk 0:02:28.4]} 16... b4 {[%clk
0:02:36.5]} 17. axb4 {[%clk 0:02:22.3]} 17... Rxa1 {[%clk 0:02:37.3]} 18. Qxa1
{[%clk 0:02:21.6]} 18... Bxb4 {[%clk 0:02:39.2]} 19. Nd2 {[%clk 0:02:15.4]}
19... Qa8 {[%clk 0:02:32.9]} 20. Qc1 {[%clk 0:02:04.5]} 20... Qa5 {[%clk
0:02:31]} 21. Na2 {[%clk 0:01:49.8]} 21... Nxe4 {[%clk 0:02:27.6]} 22. Nxb4
{[%clk 0:01:50.3]} 22... Qxb4 {[%clk 0:02:29.5]} 23. Qc4 {[%clk 0:01:36.8]}
23... Qxc4 {[%clk 0:02:20.5]} 24. Bxc4 {[%clk 0:01:38.7]} 24... Nd6 {[%clk
0:02:19.7]} 25. Bb3 {[%clk 0:01:37.1]} 25... Bb5 {[%clk 0:02:17.5]} 26. Kd1
{[%clk 0:01:34.2]} 26... Ra8 {[%clk 0:02:11]} 27. Kc2 {[%clk 0:01:32.8]} 27...
e4 {[%clk 0:02:12.1]} 28. Rc1 {[%clk 0:01:30.6]} 28... Ne5 {[%clk 0:02:12.1]}
29. Kd1 {[%clk 0:01:26.4]} 29... Nd3 {[%clk 0:02:09]} 30. Rb1 {[%clk 0:00:56.4]}
30... h6 {[%clk 0:02:09.3]} 31. Bc2 {[%clk 0:00:48.5]} 31... Ba4 {[%clk
0:02:00.9]} 32. Nb3 {[%clk 0:00:33]} 32... Nc4 {[%clk 0:01:57]} 33. Ra1 {[%clk
0:00:15.3]} 33... Rd8 {[%clk 0:01:48]} 34. Nc5 {[%clk 0:00:06.9]} 34... Bxc2+
{[%clk 0:01:42.5]} 35. Kxc2 {[%clk 0:00:08.8]} 35... Rxd5 {[%clk 0:01:37.3]} 36.
Nxe4 {[%clk 0:00:09.6]} 36... Nxe3+ {[%clk 0:01:29.9]} 37. fxe3 {[%clk
0:00:11.5]} 37... Nc5 {[%clk 0:01:10.5]} 38. Nxc5 {[%clk 0:00:11.2]} 38... Rxc5+
{[%clk 0:01:12.4]} 39. Kd3 {[%clk 0:00:12.4]} 39... Kh7 {[%clk 0:01:10.8]} 40.
Ra8 {[%clk 0:00:13.2]} 40... h5 {[%clk 0:01:11.1]} 41. Rc8 {[%clk 0:00:13]}
41... hxg4 {[%clk 0:01:11.1]} 42. hxg4 {[%clk 0:00:14.9]} 42... Kg6 {[%clk
0:01:11.3]} 43. Rg8 {[%clk 0:00:11.7]} 43... Kf6 {[%clk 0:01:08]} 44. Ke4 {[%clk
0:00:11.9]} 44... g6 {[%clk 0:01:07.9]} 45. Kf4 {[%clk 0:00:12.1]} 45... Rc4+
{[%clk 0:01:06.5]} 46. Kf3 {[%clk 0:00:13]} 46... Kg5 {[%clk 0:01:03.4]} 47. Rf8
{[%clk 0:00:13.6]} 47... f6 {[%clk 0:01:03.8]} 48. Rf7 {[%clk 0:00:13.4]} 48...
c5 {[%clk 0:01:00.1]} 49. Rc7 {[%clk 0:00:14.3]} 49... Rc1 {[%clk 0:01:01]} 50.
Rc6 {[%clk 0:00:14]} 50... Rf1+ {[%clk 0:01:00.3]} 51. Ke2 {[%clk 0:00:14.5]}
51... Rc1 {[%clk 0:00:54.2]} 52. Kd2 {[%clk 0:00:15.5]} 52... Rc4 {[%clk
0:00:55]} 53. Kd3 {[%clk 0:00:16.8]} 53... Rxg4 {[%clk 0:00:56]} 54. Rxc5+
{[%clk 0:00:18.4]} 54... Kh4 {[%clk 0:00:56.4]} 55. Ke2 {[%clk 0:00:19.8]} 55...
Kg3 {[%clk 0:00:55]} 56. Rc6 {[%clk 0:00:20.4]} 56... f5 {[%clk 0:00:56]} 57.
Rf6 {[%clk 0:00:21.4]} 57... Kh4 {[%clk 0:00:55.5]} 58. Kf3 {[%clk 0:00:22.1]}
58... Kg5 {[%clk 0:00:56.6]} 59. Rf7 {[%clk 0:00:22.8]} 59... Ra4 {[%clk
0:00:56.9]} 60. Re7 {[%clk 0:00:23.4]} 60... Ra3 {[%clk 0:00:57.9]} 61. Rf7
{[%clk 0:00:23.9]} 61... Rb3 {[%clk 0:00:48.6]} 62. Rf8 {[%clk 0:00:23.6]} 62...
Kh6 {[%clk 0:00:49.4]} 63. Rf7 {[%clk 0:00:23.8]} 63... Ra3 {[%clk 0:00:47.6]}
64. Kf4 {[%clk 0:00:22.8]} 64... Ra4+ {[%clk 0:00:47.4]} 65. Kf3 {[%clk
0:00:22.3]} 65... Kg5 {[%clk 0:00:46.2]} 66. Rf8 {[%clk 0:00:21.9]} 66... Rh4
{[%clk 0:00:47.4]} 67. Kg3 {[%clk 0:00:22.2]} 67... Rh7 {[%clk 0:00:43.6]} 68.
Kf2 {[%clk 0:00:19.5]} 68... Re7 {[%clk 0:00:44.4]} 69. Kf3 {[%clk 0:00:20.5]}
69... Re6 {[%clk 0:00:44.5]} 70. Rf7 {[%clk 0:00:21.3]} 70... Kh6 {[%clk
0:00:44.5]} 71. Rf8 {[%clk 0:00:21.4]} 71... Kg7 {[%clk 0:00:44.5]} 72. Rd8
{[%clk 0:00:22.1]} 72... Kf6 {[%clk 0:00:45.2]} 73. Rf8+ {[%clk 0:00:23]} 73...
Kg7 {[%clk 0:00:46.1]} 74. Rd8 {[%clk 0:00:23.8]} 74... g5 {[%clk 0:00:47.4]}
75. Rd7+ {[%clk 0:00:23.5]} 75... Kf6 {[%clk 0:00:46.8]} 76. Rd8 {[%clk
0:00:24.5]} 76... g4+ {[%clk 0:00:47.7]} 77. Kf2 {[%clk 0:00:23.5]} 77... Ke5
{[%clk 0:00:47.6]} 78. Rd7 {[%clk 0:00:23.6]} 78... Ra6 {[%clk 0:00:46]} 79.
Re7+ {[%clk 0:00:24.2]} 79... Kf6 {[%clk 0:00:46.6]} 80. Rd7 {[%clk 0:00:24.8]}
80... Ra2+ {[%clk 0:00:41.9]} 81. Kg3 {[%clk 0:00:25.3]} 81... Re2 {[%clk
0:00:41.7]} 82. Rd3 {[%clk 0:00:22.2]} 82... Ke5 {[%clk 0:00:41.2]} 83. Rc3
{[%clk 0:00:22.3]} 83... Kf6 {[%clk 0:00:29.3]} 84. Kf4 {[%clk 0:00:20.2]} 84...
Rf2+ {[%clk 0:00:29.3]} 85. Kg3 {[%clk 0:00:21.2]} 85... Rf3+ {[%clk 0:00:30.3]}
86. Kg2 {[%clk 0:00:22.7]} 86... Kg5 {[%clk 0:00:31.4]} 87. Rd3 {[%clk
0:00:21.1]} 87... Kh4 {[%clk 0:00:30.7]} 88. Ra3 {[%clk 0:00:20.9]} 88... f4
{[%clk 0:00:24.7]} 89. Ra1 {[%clk 0:00:12.5]} 89... Rxe3 {[%clk 0:00:24.4]} 90.
Rh1+ {[%clk 0:00:13.2]} 90... Kg5 {[%clk 0:00:25.2]} 91. Rf1 {[%clk 0:00:13.9]}
91... Re2+ {[%clk 0:00:25.8]} 92. Kg1 {[%clk 0:00:14.7]} 92... f3 {[%clk
0:00:27]} 93. Rd1 {[%clk 0:00:15.4]} 93... Kf4 {[%clk 0:00:28.1]} 94. Rd4+
{[%clk 0:00:15.7]} 94... Kg3 {[%clk 0:00:29.3]} 95. Rd1 {[%clk 0:00:15.9]} 95...
Re1+ {[%clk 0:00:26.7]} 96. Rxe1 {[%clk 0:00:16.1]} 96... f2+ {[%clk 0:00:27.9]}
97. Kf1 {[%clk 0:00:17.7]} 97... fxe1=Q+ {[%clk 0:00:29.7]} 98. Kxe1 {[%clk
0:00:19.6]} 98... Kh2 {[%clk 0:00:31.2]} 0-1

[Event "*** Titled Tuesday Blitz"]
[Site "Chess.com"]
[Date "2018.01.02"]
[Round "6"]
[White "Mikhail_Golubev"]
[Black "julinha97"]
[Result "1-0"]
[WhiteElo "2186"]
[BlackElo "2202"]
[TimeControl "180+2"]
[EndTime "14:14:48 PST"]
[Termination "Mikhail_Golubev won by resignation"]

1. e4 {[%clk 0:03:01.9]} 1... c5 {[%clk 0:03:00.8]} 2. Nf3 {[%clk 0:03:01.1]}
2... d6 {[%clk 0:03:02.2]} 3. d4 {[%clk 0:03:01.7]} 3... cxd4 {[%clk 0:03:03.9]}
4. Nxd4 {[%clk 0:03:01.4]} 4... Nf6 {[%clk 0:03:05.5]} 5. Nc3 {[%clk 0:03:01.4]}
5... g6 {[%clk 0:03:06.5]} 6. Be3 {[%clk 0:03:00.7]} 6... Bg7 {[%clk 0:03:07.5]}
7. f3 {[%clk 0:03:01.6]} 7... O-O {[%clk 0:03:06.3]} 8. Qd2 {[%clk 0:03:02.2]}
8... Nc6 {[%clk 0:03:07.8]} 9. Bc4 {[%clk 0:03:02.1]} 9... Bd7 {[%clk
0:03:08.6]} 10. O-O-O {[%clk 0:02:58.9]} 10... Rc8 {[%clk 0:03:10]} 11. Nxc6
{[%clk 0:02:52.7]} 11... bxc6 {[%clk 0:03:09.8]} 12. h4 {[%clk 0:02:51.8]} 12...
Qa5 {[%clk 0:03:03.6]} 13. h5 {[%clk 0:02:46.6]} 13... d5 {[%clk 0:02:39]} 14.
exd5 {[%clk 0:02:43.9]} 14... cxd5 {[%clk 0:02:38.3]} 15. Nxd5 {[%clk
0:02:38.9]} 15... Qxd2+ {[%clk 0:02:22.8]} 16. Rxd2 {[%clk 0:02:39.6]} 16...
Rxc4 {[%clk 0:02:21.5]} 17. Nxe7+ {[%clk 0:02:39.5]} 17... Kh8 {[%clk
0:02:21.5]} 18. h6 {[%clk 0:02:40.4]} 18... Ba4 {[%clk 0:02:14]} 19. hxg7+
{[%clk 0:02:39.8]} 19... Kxg7 {[%clk 0:02:15]} 20. Bh6+ {[%clk 0:02:39.6]} 1-0

[Event "*** Titled Tuesday Blitz"]
[Site "Chess.com"]
[Date "2018.01.02"]
[Round "6"]
[White "GMAkobianSTL"]
[Black "colemman"]
[Result "1-0"]
[WhiteElo "2653"]
[BlackElo "2428"]
[TimeControl "180+2"]
[EndTime "14:15:26 PST"]
[Termination "GMAkobianSTL won by resignation"]

1. d4 {[%clk 0:03:01.9]} 1... d5 {[%clk 0:03:00.9]} 2. c4 {[%clk 0:03:01.9]}
2... e6 {[%clk 0:03:00.7]} 3. Nc3 {[%clk 0:03:01]} 3... Nf6 {[%clk 0:03:01.4]}
4. cxd5 {[%clk 0:03:01.7]} 4... exd5 {[%clk 0:03:02]} 5. Bg5 {[%clk 0:03:01.9]}
5... Be7 {[%clk 0:03:01.7]} 6. e3 {[%clk 0:03:02.5]} 6... O-O {[%clk 0:03:02.3]}
7. Bd3 {[%clk 0:03:01.8]} 7... Re8 {[%clk 0:02:59.9]} 8. Qc2 {[%clk 0:03:02.2]}
8... h6 {[%clk 0:02:56.7]} 9. Bh4 {[%clk 0:03:02.3]} 9... c6 {[%clk 0:02:56.3]}
10. Nge2 {[%clk 0:03:02.5]} 10... Nbd7 {[%clk 0:02:56.1]} 11. O-O {[%clk
0:03:02.9]} 11... Nf8 {[%clk 0:02:56.7]} 12. f3 {[%clk 0:03:03.6]} 12... Ne6
{[%clk 0:02:56.8]} 13. Rad1 {[%clk 0:03:03.2]} 13... Nd7 {[%clk 0:02:47.2]} 14.
Bxe7 {[%clk 0:03:03.2]} 14... Qxe7 {[%clk 0:02:49.1]} 15. e4 {[%clk 0:03:04.5]}
15... Nb6 {[%clk 0:02:45.1]} 16. e5 {[%clk 0:03:04.9]} 16... c5 {[%clk
0:02:42.6]} 17. f4 {[%clk 0:03:05.3]} 17... cxd4 {[%clk 0:02:42.6]} 18. Nb5
{[%clk 0:03:05.8]} 18... Bd7 {[%clk 0:02:40]} 19. Nd6 {[%clk 0:03:06.5]} 19...
Rf8 {[%clk 0:02:36]} 20. Nxd4 {[%clk 0:03:06.4]} 20... Nxf4 {[%clk 0:02:17.7]}
21. Rxf4 {[%clk 0:03:03.5]} 21... Qxe5 {[%clk 0:02:16.6]} 22. Bh7+ {[%clk
0:03:04.1]} 22... Kh8 {[%clk 0:02:16.9]} 23. Nxf7+ {[%clk 0:03:04.8]} 23... Rxf7
{[%clk 0:02:17.7]} 24. Rxf7 {[%clk 0:03:05.9]} 24... Bg4 {[%clk 0:02:14.5]} 25.
Nf3 {[%clk 0:02:56.1]} 25... Qe3+ {[%clk 0:01:58.6]} 26. Kh1 {[%clk 0:02:56.8]}
26... Rc8 {[%clk 0:01:49.3]} 27. Qg6 {[%clk 0:02:55.8]} 1-0

[Event "*** Titled Tuesday Blitz"]
[Site "Chess.com"]
[Date "2018.01.02"]
[Round "6"]
[White "Jospem"]
[Black "EndgameGrinder"]
[Result "0-1"]
[WhiteElo "2605"]
[BlackElo "2458"]
[TimeControl "180+2"]
[EndTime "14:15:49 PST"]
[Termination "EndgameGrinder won on time"]

1. e4 {[%clk 0:02:59.4]} 1... c5 {[%clk 0:03:00.1]} 2. Nf3 {[%clk 0:02:59.5]}
2... e6 {[%clk 0:03:01.2]} 3. d4 {[%clk 0:02:59.8]} 3... cxd4 {[%clk 0:03:02.5]}
4. Nxd4 {[%clk 0:03:01.1]} 4... Nc6 {[%clk 0:03:03.1]} 5. Nc3 {[%clk 0:03:02]}
5... Qc7 {[%clk 0:03:04.2]} 6. Be3 {[%clk 0:03:02.7]} 6... a6 {[%clk 0:03:04.7]}
7. Qd2 {[%clk 0:03:03]} 7... Nf6 {[%clk 0:03:05.5]} 8. f3 {[%clk 0:03:02.8]}
8... Be7 {[%clk 0:03:06.5]} 9. O-O-O {[%clk 0:03:02.5]} 9... h5 {[%clk
0:03:07.2]} 10. h3 {[%clk 0:02:49.4]} 10... b5 {[%clk 0:03:05.9]} 11. Kb1 {[%clk
0:02:50.2]} 11... Bb7 {[%clk 0:03:06.3]} 12. Nxc6 {[%clk 0:02:49.3]} 12... Bxc6
{[%clk 0:03:06.3]} 0-1

[Event "*** Titled Tuesday Blitz"]
[Site "Chess.com"]
[Date "2018.01.02"]
[Round "6"]
[White "plouarzel"]
[Black "tomsishere"]
[Result "0-1"]
[WhiteElo "2337"]
[BlackElo "2298"]
[TimeControl "180+2"]
[EndTime "14:16:03 PST"]
[Termination "tomsishere won by resignation"]

1. e4 {[%clk 0:03:01.9]} 1... c5 {[%clk 0:02:56.9]} 2. Nf3 {[%clk 0:03:02.4]}
2... e6 {[%clk 0:02:56.8]} 3. d4 {[%clk 0:03:02.8]} 3... cxd4 {[%clk 0:02:58.3]}
4. Nxd4 {[%clk 0:03:04.7]} 4... Nc6 {[%clk 0:02:59.4]} 5. Nc3 {[%clk 0:03:04.9]}
5... Qc7 {[%clk 0:03:00.6]} 6. Be2 {[%clk 0:03:04.4]} 6... a6 {[%clk 0:03:00.4]}
7. O-O {[%clk 0:03:02.5]} 7... b5 {[%clk 0:03:01]} 8. a3 {[%clk 0:02:55.3]} 8...
Bb7 {[%clk 0:03:01]} 9. Nxc6 {[%clk 0:02:49.6]} 9... Bxc6 {[%clk 0:02:58.6]} 10.
f4 {[%clk 0:02:48.4]} 10... Bc5+ {[%clk 0:02:57.8]} 11. Kh1 {[%clk 0:02:47.9]}
11... Ne7 {[%clk 0:02:58.4]} 12. Bf3 {[%clk 0:02:41.9]} 12... O-O {[%clk
0:02:51.4]} 13. e5 {[%clk 0:02:42.6]} 13... Qb7 {[%clk 0:02:38.7]} 14. Qe2
{[%clk 0:02:29.6]} 14... Nf5 {[%clk 0:02:10]} 15. Bxc6 {[%clk 0:02:07.7]} 15...
Qxc6 {[%clk 0:02:09.1]} 16. Ne4 {[%clk 0:02:04.5]} 16... d5 {[%clk 0:01:50.5]}
17. exd6 {[%clk 0:01:53.2]} 17... Nxd6 {[%clk 0:01:47]} 18. Nxc5 {[%clk
0:01:53.2]} 18... Qxc5 {[%clk 0:01:47.5]} 19. Be3 {[%clk 0:01:52.1]} 19... Qc4
{[%clk 0:01:46.5]} 20. b3 {[%clk 0:01:45.3]} 20... Qxe2 {[%clk 0:01:46.1]} 0-1

[Event "*** Titled Tuesday Blitz"]
[Site "Chess.com"]
[Date "2018.01.02"]
[Round "6"]
[White "RaphaeI"]
[Black "hypert"]
[Result "1-0"]
[WhiteElo "2488"]
[BlackElo "2312"]
[TimeControl "180+2"]
[EndTime "14:16:58 PST"]
[Termination "RaphaeI won by resignation"]

1. d4 {[%clk 0:03:01.9]} 1... d5 {[%clk 0:03:00.5]} 2. c4 {[%clk 0:03:02.5]}
2... c6 {[%clk 0:03:01.8]} 3. Nf3 {[%clk 0:03:03.1]} 3... Nf6 {[%clk 0:03:02.6]}
4. e3 {[%clk 0:03:04.4]} 4... Bf5 {[%clk 0:03:02.7]} 5. Nc3 {[%clk 0:03:04.9]}
5... a6 {[%clk 0:03:03.2]} 6. Ne5 {[%clk 0:03:05.6]} 6... Nbd7 {[%clk
0:02:37.8]} 7. Qb3 {[%clk 0:03:04.9]} 7... Nxe5 {[%clk 0:01:47.2]} 8. dxe5
{[%clk 0:03:04.5]} 8... Nd7 {[%clk 0:01:47.4]} 9. cxd5 {[%clk 0:02:44.6]} 9...
cxd5 {[%clk 0:01:36.1]} 10. Qxd5 {[%clk 0:02:24.3]} 10... e6 {[%clk 0:01:34.2]}
11. Qxb7 {[%clk 0:02:24.5]} 11... Nxe5 {[%clk 0:01:24.2]} 12. e4 {[%clk
0:02:08.5]} 12... Bg6 {[%clk 0:00:40.1]} 13. Bf4 {[%clk 0:02:07.8]} 13... Rb8
{[%clk 0:00:16.1]} 14. Qxa6 {[%clk 0:02:03.4]} 14... Rb6 {[%clk 0:00:15.4]} 15.
Bb5+ {[%clk 0:02:01.9]} 15... Nd7 {[%clk 0:00:14.1]} 16. Bxd7+ {[%clk 0:02:00]}
1-0

[Event "*** Titled Tuesday Blitz"]
[Site "Chess.com"]
[Date "2018.01.02"]
[Round "6"]
[White "inegrepus"]
[Black "oskariot"]
[Result "1-0"]
[WhiteElo "2143"]
[BlackElo "2378"]
[TimeControl "180+2"]
[EndTime "14:17:01 PST"]
[Termination "inegrepus won by resignation"]

1. d4 {[%clk 0:03:01.8]} 1... e6 {[%clk 0:03:00.7]} 2. c4 {[%clk 0:03:00.1]}
2... Bb4+ {[%clk 0:02:59.9]} 3. Bd2 {[%clk 0:03:01]} 3... a5 {[%clk 0:03:00.5]}
4. g3 {[%clk 0:03:01]} 4... f5 {[%clk 0:02:59.2]} 5. Bg2 {[%clk 0:03:01.9]} 5...
Nf6 {[%clk 0:03:00.1]} 6. Nf3 {[%clk 0:03:03]} 6... O-O {[%clk 0:03:00.7]} 7.
O-O {[%clk 0:03:04.3]} 7... Qe7 {[%clk 0:02:59.8]} 8. Bf4 {[%clk 0:03:00.3]}
8... Bd6 {[%clk 0:02:49.7]} 9. Bd2 {[%clk 0:02:59]} 9... c5 {[%clk 0:02:37.3]}
10. Nc3 {[%clk 0:02:58.5]} 10... cxd4 {[%clk 0:02:29.4]} 11. Nxd4 {[%clk
0:02:59.2]} 11... Nc6 {[%clk 0:02:28.2]} 12. Ndb5 {[%clk 0:02:57.5]} 12... Bc5
{[%clk 0:02:28.1]} 13. Nc7 {[%clk 0:02:54.4]} 13... Rb8 {[%clk 0:02:21.1]} 14.
Na4 {[%clk 0:02:51.8]} 14... Bd4 {[%clk 0:01:54.4]} 15. e3 {[%clk 0:02:49.6]}
15... Be5 {[%clk 0:01:54.9]} 16. Nb5 {[%clk 0:02:44.5]} 16... Ne4 {[%clk
0:01:46.1]} 17. f4 {[%clk 0:02:40.2]} 17... Bf6 {[%clk 0:01:45.7]} 18. Bxe4
{[%clk 0:02:36.2]} 18... fxe4 {[%clk 0:01:46.1]} 19. Bc3 {[%clk 0:02:37.3]}
19... Nb4 {[%clk 0:01:14.5]} 20. Qd6 {[%clk 0:02:33.5]} 20... Nd3 {[%clk
0:01:01]} 21. Qxb8 {[%clk 0:02:27.4]} 21... Qf7 {[%clk 0:01:02]} 22. Nd6 {[%clk
0:02:21.8]} 22... Qg6 {[%clk 0:01:01.8]} 23. Nxc8 {[%clk 0:02:20.9]} 23... h5
{[%clk 0:01:02.9]} 24. Bxf6 {[%clk 0:02:15.4]} 24... Qxf6 {[%clk 0:01:03.6]} 25.
Qxb7 {[%clk 0:02:11.2]} 25... h4 {[%clk 0:01:04.3]} 26. Kg2 {[%clk 0:02:10.2]}
26... hxg3 {[%clk 0:01:04]} 27. hxg3 {[%clk 0:02:11]} 27... Qg6 {[%clk
0:01:04.9]} 28. Ne7+ {[%clk 0:02:09.8]} 1-0